fUSD/lending_fUSD_20250307
["ID","MTS","AMOUNT","RATE_DAILY","PERIOD"]
[355586600,1741332639735,-742.17,9.592e-05,2]
[355586601,1741332639746,-286.76609989,9.593e-05,2]
[355586602,1741332639759,-213.23390011,9.593e-05,2]
[355586603,1741332639768,-469.37133173,9.593e-05,2]
[355586604,1741332639781,-413.23866827,9.593e-05,2]
[355586605,1741332639791,-621.11633173,9.697e-05,2]
[355586606,1741332639809,-1107.52483163,9.697e-05,2]
[355586607,1741332639820,-439.49000001,9.697e-05,2]
[355586608,1741332639832,-654.839996,9.697e-05,2]
[355586609,1741332639844,-500.0,9.697e-05,2]
[355586610,1741332639856,-577.46205938,9.697e-05,2]
[355586611,1741332639867,-3293.73085557,9.697e-05,2]
[355586612,1741332639878,-52314.45260923,9.697e-05,2]
[355586613,1741332639903,-490.0,9.697e-05,2]
[355586614,1741332639914,-12095.83729185,9.697e-05,2]
[355586615,1741332639925,-494.99999995,9.697e-05,2]
[355586635,1741332647733,-1328.12717403,9.697e-05,2]
[355586636,1741332647754,-862.64867613,9.697e-05,2]
[355586637,1741332647767,-6492.98264759,9.697e-05,2]
[355586638,1741332647787,-10953.2581042,9.697e-05,2]
[355586639,1741332647824,-709.93866469,9.697e-05,2]
[355586640,1741332647849,-36340.36827717,9.697e-05,2]
[355586641,1741332648027,-2429.4141106,9.697e-05,2]
[355586642,1741332648052,-2222.62780469,9.697e-05,2]
[355586643,1741332648076,-499.54938565,9.697e-05,2]
[355586644,1741332648089,-5132.898045,9.697e-05,2]
[355586645,1741332648131,-536.76128038,9.697e-05,2]
[355586646,1741332648142,-450.49856311,9.697e-05,2]
[355586647,1741332648154,-10615.38647393,9.697e-05,2]
[355586648,1741332648166,-13367.51408339,9.697e-05,2]
[355586649,1741332648178,-706.29459785,9.697e-05,2]
[355586650,1741332648856,-2513.09890421,9.697e-05,2]
[355586651,1741332648913,-2502.0,9.697e-05,2]
[355586652,1741332648929,-220464.69808672,9.697e-05,2]
[355586653,1741332650862,-61804.07095395,9.697e-05,2]
[355586654,1741332650873,-485.305,9.697e-05,2]
[355586655,1741332650885,-1849.17996934,9.697e-05,2]
[355586656,1741332650913,-2889.93333013,9.697e-05,2]
[355586657,1741332650924,-2490.6707393,9.697e-05,2]
[355586658,1741332650935,-2903.04000028,9.697e-05,2]
[355586659,1741332650946,-2696.30004,9.697e-05,2]
[355586660,1741332650957,-2170.0904762,9.697e-05,2]
[355586661,1741332650968,-1265.14514722,9.697e-05,2]
[355586662,1741332650979,-631.44,9.697e-05,2]
[355586663,1741332650991,-1356.4999996,9.697e-05,2]
[355586664,1741332651002,-2059.18837802,9.697e-05,2]
[355586665,1741332651014,-643.3159777,9.697e-05,2]
[355586666,1741332651025,-506.62630079,9.697e-05,2]
[355586667,1741332651036,-352.72799642,9.697e-05,2]
[355586668,1741332651047,-19852.51822778,9.697e-05,2]
[355586669,1741332651058,-8848.34865283,9.697e-05,2]
[355586670,1741332651071,-9320.98184442,9.697e-05,2]
[355586671,1741332651563,-569.57937025,9.697e-05,2]
[355586672,1741332651580,-8569.6,9.697e-05,2]
[355586673,1741332651591,-105813.0307756,9.697e-05,2]
[355586674,1741332651600,-150.0,9.83e-05,2]
[355586675,1741332651610,-1278.0,9.83e-05,2]
[355586676,1741332651620,-2032.0,9.83e-05,2]
[355586677,1741332651629,-642.0,9.857e-05,2]
[355586678,1741332651638,-500.0,9.866e-05,2]
[355586679,1741332651647,-500.0,9.866e-05,2]
[355586680,1741332651656,-597.6257039,9.866e-05,2]
[355586681,1741332651666,-500.0,9.866e-05,2]
[355586682,1741332651675,-500.0,9.866e-05,2]
[355586683,1741332651685,-824.19438719,9.866e-05,2]
[355586684,1741332651696,-1193.61488787,9.866e-05,2]
[355586685,1741332651710,-1187.68980802,9.866e-05,2]
[355586686,1741332651721,-2931.71737672,9.866e-05,2]
[355586687,1741332651732,-1444.60801113,9.866e-05,2]
[355586688,1741332651755,-1081.03146575,9.866e-05,2]
[355586689,1741332651776,-518.2515525,9.866e-05,2]
[355586690,1741332651788,-1417.56443875,9.866e-05,2]
[355586691,1741332651799,-1077.92,9.866e-05,2]
[355586692,1741332651838,-467.96961399,9.866e-05,2]
[355586693,1741332651849,-251.10073731,9.866e-05,2]
[355586694,1741332652631,-1152.29,9.592e-05,2]
[355586695,1741332652641,-3658.99430887,9.592e-05,2]
[355586696,1741332652652,-313.29658252,9.592e-05,2]
[355586697,1741332652664,-1526.77504163,9.592e-05,2]
[355586698,1741332652675,-840.29327039,9.592e-05,2]
[355586699,1741332652686,-1571.84079659,9.592e-05,2]
[355586700,1741332652696,-181.26127783,9.593e-05,2]
[355586701,1741332669363,-500.0,9.068e-05,2]
[355586702,1741332669391,-1265.43,9.592e-05,2]
[355586703,1741332669418,-1636.4,9.592e-05,2]
[355586704,1741332669445,-300.0,9.592e-05,2]
[355586705,1741332669472,-318.73872217,9.593e-05,2]
[355586706,1741332669499,-155.30883922,9.593e-05,2]
[355586707,1741332669527,-500.0,9.593e-05,2]
[355586708,1741332669553,-332.06,9.593e-05,2]
[355586709,1741332669579,-150.052155,9.593e-05,2]
[355586710,1741332669606,-1423.63,9.593e-05,2]
[355586711,1741332669632,-831.5,9.593e-05,2]
[355586712,1741332669658,-500.0,9.593e-05,2]
[355586713,1741332669685,-500.0,9.593e-05,2]
[355586714,1741332669714,-500.0,9.593e-05,2]
[355586715,1741332669743,-500.0,9.593e-05,2]
[355586716,1741332669771,-1774.86,9.593e-05,2]
[355586717,1741332669798,-159.0,9.593e-05,3]
[355586718,1741332669825,-500.0,9.593e-05,2]
[355586719,1741332669851,-527.8,9.593e-05,2]
[355586720,1741332669877,-2538.56,9.593e-05,2]
[355586721,1741332669905,-813.22,9.594e-05,2]
[355586722,1741332669931,-500.0,9.594e-05,2]
[355586723,1741332669958,-500.0,9.594e-05,2]
[355586724,1741332669985,-615.23,9.594e-05,2]
[355586725,1741332670011,-500.0,9.594e-05,2]
[355586726,1741332670039,-1238.99,9.594e-05,2]
[355586727,1741332670067,-150.07380055,9.673e-05,2]
[355586728,1741332670094,-1012.0,9.857e-05,2]
[355586729,1741332670120,-150.0,9.857e-05,2]
[355586730,1741332670149,-571.0,9.857e-05,2]
[355586731,1741332670175,-641.0,9.857e-05,2]
[355586732,1741332670203,-900.12772077,9.866e-05,2]
[355586733,1741332670231,-3240.93,9.866e-05,2]
[355586734,1741332670259,-1414.62,9.866e-05,2]
[355586735,1741332670287,-742.17,9.866e-05,2]
[355586736,1741332670315,-1152.29,9.866e-05,2]
[355586737,1741332670343,-7911.2,9.866e-05,2]
[355586738,1741332670371,-1265.43,9.866e-05,2]
[355586739,1741332670399,-1636.4,9.866e-05,2]
[355586740,1741332670427,-610.87,9.867e-05,2]
[355586741,1741332670454,-1611.62,9.867e-05,2]
[355586742,1741332670481,-500.0,9.867e-05,2]
[355586743,1741332670508,-1159.93,9.867e-05,2]
[355586744,1741332670535,-975.54,9.867e-05,2]
[355586745,1741332670562,-500.0,9.867e-05,2]
[355586746,1741332670589,-537.8,9.867e-05,2]
[355586747,1741332670617,-1337.4,9.867e-05,2]
[355586748,1741332670645,-500.0,9.867e-05,2]
[355586749,1741332670673,-1326.98,9.867e-05,2]
[355586750,1741332670700,-500.0,9.867e-05,2]
[355586751,1741332670731,-506.65,9.867e-05,2]
[355586752,1741332670760,-500.0,9.867e-05,2]
[355586753,1741332670789,-1222.38,9.867e-05,2]
[355586754,1741332670818,-2461.13,9.867e-05,2]
[355586755,1741332670844,-500.0,9.867e-05,2]
[355586756,1741332670872,-664.08,9.867e-05,2]
[355586757,1741332670899,-500.0,9.867e-05,2]
[355586758,1741332670927,-759.92,9.867e-05,2]
[355586759,1741332670955,-797.91,9.867e-05,2]
[355586760,1741332670983,-4290.34,9.867e-05,2]
[355586761,1741332671010,-2845.32,9.867e-05,2]
[355586762,1741332671039,-1919.85,9.867e-05,2]
[355586763,1741332671271,-1023.08,9.867e-05,2]
[355586764,1741332671299,-5777.44,9.867e-05,2]
[355586765,1741332671327,-1131.14,9.867e-05,2]
[355586766,1741332671354,-876.6,9.867e-05,2]
[355586767,1741332671382,-8209.0,9.867e-05,2]
[355586768,1741332671409,-500.0,9.867e-05,2]
[355586769,1741332671437,-6903.54,9.867e-05,2]
[355586770,1741332671464,-1105.92,9.867e-05,2]
[355586771,1741332671491,-3061.17,9.867e-05,2]
[355586772,1741332671519,-2304.04,9.867e-05,2]
[355586773,1741332671548,-1229.76,9.867e-05,2]
[355586774,1741332671576,-6104.01,9.867e-05,2]
[355586775,1741332671603,-2920.18,9.867e-05,2]
[355586776,1741332671630,-1975.86,9.867e-05,2]
[355586777,1741332671657,-3157.04,9.867e-05,2]
[355586778,1741332671685,-514.88,9.867e-05,2]
[355586779,1741332671722,-876.52,9.867e-05,2]
[355586780,1741332671756,-3656.2,9.867e-05,2]
[355586781,1741332671787,-1340.41,9.867e-05,2]
[355586782,1741332671819,-2038.88,9.867e-05,2]
[355586783,1741332671850,-824.37,9.867e-05,2]
[355586784,1741332671880,-500.0,9.867e-05,2]
[355586785,1741332671910,-4366.67,9.867e-05,2]
[355586786,1741332671939,-2239.09,9.867e-05,2]
[355586787,1741332671968,-500.0,9.867e-05,2]
[355586788,1741332671999,-3024.28,9.867e-05,2]
[355586789,1741332672043,-3918.61,9.867e-05,2]
[355586790,1741332672072,-1613.99,9.867e-05,2]
[355586791,1741332672101,-500.0,9.867e-05,2]
[355586792,1741332672130,-4904.84,9.867e-05,2]
[355586793,1741332672158,-1310.03,9.867e-05,2]
[355586794,1741332672186,-500.0,9.867e-05,2]
[355586795,1741332672216,-7325.37,9.867e-05,2]
[355586796,1741332672245,-1015.53,9.867e-05,2]
[355586797,1741332672274,-2716.61,9.867e-05,2]
[355586798,1741332672303,-1292.61,9.867e-05,2]
[355586799,1741332672336,-377.4634617,9.867e-05,2]
[355586800,1741332672366,-1776.02,9.867e-05,2]
[355586801,1741332672395,-3017.17,9.867e-05,2]
[355586802,1741332672424,-6358.3,9.867e-05,2]
[355586803,1741332672454,-500.0,9.867e-05,2]
[355586804,1741332672482,-13509.76,9.867e-05,2]
[355586805,1741332672510,-500.0,9.867e-05,2]
[355586806,1741332672541,-541.4,9.867e-05,2]
[355586807,1741332672570,-500.0,9.867e-05,2]
[355586808,1741332672598,-500.0,9.867e-05,2]
[355586809,1741332672627,-694.76,9.867e-05,2]
[355586810,1741332672654,-500.0,9.867e-05,2]
[355586811,1741332672686,-882.61,9.867e-05,2]
[355586812,1741332672715,-372.53,9.867e-05,2]
[355586813,1741332672750,-500.0,9.867e-05,2]
[355586814,1741332672780,-150.052155,9.867e-05,2]
[355586815,1741332672812,-1423.63,9.867e-05,2]
[355586816,1741332672841,-831.5,9.867e-05,2]
[355586817,1741332672870,-500.0,9.867e-05,2]
[355586818,1741332672898,-500.0,9.867e-05,2]
[355586819,1741332672926,-500.0,9.867e-05,2]
[355586820,1741332672955,-500.0,9.867e-05,2]
[355586821,1741332672984,-1774.86,9.867e-05,2]
[355586822,1741332673012,-500.0,9.867e-05,2]
[355586823,1741332673041,-527.8,9.867e-05,2]
[355586824,1741332673070,-2538.56,9.867e-05,2]
[355586825,1741332673102,-786.0,9.868e-05,2]
[355586826,1741332673131,-1270.0,9.868e-05,2]
[355586827,1741332673160,-907.0,9.868e-05,2]
[355586828,1741332673189,-1428.0,9.868e-05,2]
[355586829,1741332673218,-541.0,9.868e-05,2]
[355586830,1741332673247,-4042.0,9.868e-05,2]
[355586831,1741332673276,-500.0,9.868e-05,2]
[355586832,1741332673305,-500.0,9.868e-05,2]
[355586833,1741332673335,-500.0,9.868e-05,2]
[355586834,1741332673365,-500.0,9.868e-05,2]
[355586835,1741332673395,-500.0,9.868e-05,2]
[355586836,1741332673424,-500.0,9.868e-05,2]
[355586837,1741332673454,-500.0,9.868e-05,2]
[355586838,1741332673482,-500.0,9.868e-05,2]
[355586839,1741332673510,-500.0,9.868e-05,2]
[355586840,1741332673538,-500.0,9.868e-05,2]
[355586841,1741332673567,-500.0,9.868e-05,2]
[355586842,1741332673595,-507.89929404,9.868e-05,2]
[355586843,1741332673623,-500.0,9.868e-05,2]
[355586844,1741332673651,-500.0,9.868e-05,2]
[355586845,1741332673680,-500.0,9.868e-05,2]
[355586846,1741332673710,-500.0,9.868e-05,2]
[355586847,1741332673742,-500.0,9.868e-05,2]
[355586848,1741332673770,-528.51988849,9.868e-05,2]
[355586849,1741332673799,-500.0,9.868e-05,2]
[355586850,1741332673827,-500.0,9.868e-05,2]
[355586851,1741332673869,-500.0,9.868e-05,2]
[355586852,1741332673899,-232.29675711,9.868e-05,2]
[355586853,1741332673928,-500.0,9.868e-05,2]
[355586854,1741332673958,-500.0,9.868e-05,2]
[355586855,1741332673989,-500.0,9.868e-05,2]
[355586856,1741332674020,-310.94785197,9.868e-05,2]
[355586857,1741332674050,-500.0,9.868e-05,2]
[355586858,1741332674079,-500.0,9.868e-05,2]
[355586859,1741332674109,-509.73,9.868e-05,2]
[355586860,1741332674144,-500.0,9.868e-05,2]
[355586861,1741332674175,-500.0,9.868e-05,2]
[355586862,1741332674204,-500.0,9.868e-05,2]
[355586863,1741332674232,-528.63,9.868e-05,2]
[355586864,1741332674263,-500.0,9.868e-05,2]
[355586865,1741332674294,-500.0,9.868e-05,2]
[355586866,1741332674324,-500.0,9.868e-05,2]
[355586867,1741332674355,-500.0,9.868e-05,2]
[355586868,1741332674384,-337.4191935,9.868e-05,2]
[355586869,1741332674416,-500.0,9.868e-05,2]
[355586870,1741332674446,-500.0,9.868e-05,2]
[355586871,1741332674478,-510.39488479,9.868e-05,2]
[355586872,1741332674508,-500.0,9.868e-05,2]
[355586873,1741332674537,-500.0,9.868e-05,2]
[355586874,1741332674821,-500.0,9.868e-05,2]
[355586875,1741332674854,-514.84682232,9.868e-05,2]
[355586876,1741332674885,-500.0,9.868e-05,2]
[355586877,1741332674915,-500.0,9.868e-05,2]
[355586878,1741332674945,-500.0,9.868e-05,2]
[355586879,1741332674973,-500.0,9.868e-05,2]
[355586880,1741332675002,-500.0,9.868e-05,2]
[355586881,1741332675033,-500.0,9.868e-05,2]
[355586882,1741332675063,-558.28014949,9.868e-05,2]
[355586883,1741332675092,-576.83815804,9.868e-05,2]
[355586884,1741332675121,-500.0,9.868e-05,2]
[355586885,1741332675153,-500.0,9.868e-05,2]
[355586886,1741332675182,-500.0,9.868e-05,2]
[355586887,1741332675212,-860.66,9.868e-05,2]
[355586888,1741332675243,-500.0,9.868e-05,2]
[355586889,1741332675275,-500.0,9.868e-05,2]
[355586890,1741332675313,-500.0,9.868e-05,2]
[355586891,1741332675344,-1089.51,9.868e-05,2]
[355586892,1741332675375,-500.0,9.868e-05,2]
[355586893,1741332675404,-312.04105824,9.868e-05,2]
[355586894,1741332675435,-500.0,9.868e-05,2]
[355586895,1741332675465,-1310.21,9.868e-05,2]
[355586896,1741332675494,-709.57,9.868e-05,2]
[355586897,1741332675522,-500.0,9.868e-05,2]
[355586898,1741332675554,-500.0,9.868e-05,2]
[355586899,1741332675583,-500.0,9.868e-05,2]
[355586900,1741332675612,-1081.29,9.868e-05,2]
[355586901,1741332675642,-687.48,9.868e-05,2]
[355586902,1741332675671,-504.50672642,9.868e-05,2]
[355586903,1741332675700,-512.16522572,9.868e-05,2]
[355586904,1741332675735,-500.0,9.868e-05,2]
[355586905,1741332675769,-746.8,9.868e-05,2]
[355586906,1741332675801,-500.0,9.868e-05,2]
[355586907,1741332675833,-704.84,9.868e-05,2]
[355586908,1741332675863,-500.0,9.868e-05,2]
[355586909,1741332675892,-503.40548968,9.868e-05,2]
[355586910,1741332675920,-500.0,9.868e-05,2]
[355586911,1741332675948,-500.0,9.868e-05,2]
[355586912,1741332675976,-500.0,9.868e-05,2]
[355586913,1741332676004,-500.0,9.868e-05,2]
[355586914,1741332676034,-500.0,9.868e-05,2]
[355586915,1741332676062,-500.0,9.868e-05,2]
[355586916,1741332676090,-678.83,9.868e-05,2]
[355586917,1741332676117,-500.0,9.868e-05,2]
[355586918,1741332676145,-500.0,9.868e-05,2]
[355586919,1741332676173,-500.0,9.868e-05,2]
[355586920,1741332676203,-500.0,9.868e-05,2]
[355586921,1741332676232,-500.0,9.868e-05,2]
[355586922,1741332676259,-500.0,9.868e-05,2]
[355586923,1741332676289,-618.67,9.868e-05,2]
[355586924,1741332676317,-500.0,9.868e-05,2]
[355586925,1741332676344,-511.33,9.868e-05,2]
[355586926,1741332676372,-500.0,9.868e-05,2]
[355586927,1741332676401,-518.42,9.868e-05,2]
[355586928,1741332676429,-500.0,9.868e-05,2]
[355586929,1741332676458,-949.75,9.868e-05,2]
[355586930,1741332676486,-509.55,9.868e-05,2]
[355586931,1741332676514,-500.0,9.868e-05,2]
[355586932,1741332676542,-500.0,9.868e-05,2]
[355586933,1741332676570,-500.0,9.868e-05,2]
[355586934,1741332676598,-500.0,9.868e-05,2]
[355586935,1741332676625,-500.0,9.868e-05,2]
[355586936,1741332676653,-940.08,9.868e-05,2]
[355586937,1741332676680,-497.6450033,9.868e-05,2]
[355586938,1741332676706,-526.52794712,9.868e-05,2]
[355586939,1741332676740,-691.68,9.868e-05,2]
[355586940,1741332676769,-289.2459923,9.868e-05,2]
[355586941,1741332676797,-500.0,9.868e-05,2]
[355586942,1741332676830,-500.0,9.868e-05,2]
[355586943,1741332676857,-500.0,9.868e-05,2]
[355586944,1741332676886,-500.0,9.868e-05,2]
[355586945,1741332676915,-583.72,9.868e-05,2]
[355586946,1741332676942,-500.0,9.868e-05,2]
[355586947,1741332676970,-500.0,9.868e-05,2]
[355586948,1741332676997,-500.0,9.868e-05,2]
[355586949,1741332677025,-500.0,9.868e-05,2]
[355586950,1741332677055,-500.0,9.868e-05,2]
[355586951,1741332677085,-508.19769141,9.868e-05,2]
[355586952,1741332677114,-500.0,9.868e-05,2]
[355586953,1741332677142,-576.31,9.868e-05,2]
[355586954,1741332677170,-500.0,9.868e-05,2]
[355586955,1741332677199,-500.0,9.868e-05,2]
[355586956,1741332677233,-524.41934499,9.868e-05,2]
[355586957,1741332677274,-550.19,9.868e-05,2]
[355586958,1741332677311,-422.65054197,9.868e-05,2]
[355586959,1741332677340,-535.47,9.868e-05,2]
[355586960,1741332677368,-500.0,9.868e-05,2]
[355586961,1741332677397,-500.0,9.868e-05,2]
[355586962,1741332677423,-504.81117574,9.868e-05,2]
[355586963,1741332677451,-521.58856619,9.868e-05,2]
[355586964,1741332677481,-700.88,9.868e-05,2]
[355586965,1741332677510,-676.23,9.868e-05,2]
[355586966,1741332677539,-500.0,9.868e-05,2]
[355586967,1741332677567,-935.16,9.868e-05,2]
[355586968,1741332677596,-500.0,9.868e-05,2]
[355586969,1741332677623,-505.21299778,9.868e-05,2]
[355586970,1741332677650,-504.74,9.868e-05,2]
[355586971,1741332677678,-500.0,9.868e-05,2]
[355586972,1741332677705,-500.0,9.868e-05,2]
[355586973,1741332677736,-511.55924634,9.868e-05,2]
[355586974,1741332677769,-500.0,9.868e-05,2]
[355586975,1741332677799,-225.1034533,9.868e-05,2]
[355586976,1741332677828,-323.73651977,9.868e-05,2]
[355586977,1741332677856,-500.0,9.868e-05,2]
[355586978,1741332677884,-537.06,9.868e-05,2]
[355586979,1741332677912,-500.0,9.868e-05,2]
[355586980,1741332677940,-500.0,9.868e-05,2]
[355586981,1741332677968,-577.4,9.868e-05,2]
[355586982,1741332677996,-500.0,9.868e-05,2]
[355586983,1741332678024,-500.0,9.868e-05,2]
[355586984,1741332678056,-506.11737486,9.868e-05,2]
[355586985,1741332678084,-509.80125735,9.868e-05,2]
[355586986,1741332678297,-500.0,9.868e-05,2]
[355586987,1741332678328,-500.0,9.868e-05,2]
[355586988,1741332678357,-500.0,9.868e-05,2]
[355586989,1741332678386,-979.4,9.868e-05,2]
[355586990,1741332678415,-542.18,9.868e-05,2]
[355586991,1741332678444,-1446.31,9.868e-05,2]
[355586992,1741332678474,-500.0,9.868e-05,2]
[355586993,1741332678503,-791.61,9.868e-05,2]
[355586994,1741332678532,-500.0,9.868e-05,2]
[355586995,1741332678560,-500.0,9.868e-05,2]
[355586996,1741332678590,-1960.55,9.868e-05,2]
[355586997,1741332678618,-1679.54,9.868e-05,2]
[355586998,1741332678647,-1414.32,9.868e-05,2]
[355586999,1741332678677,-1280.09,9.868e-05,2]
[355587000,1741332678706,-2499.34,9.868e-05,2]
[355587001,1741332678741,-875.6,9.868e-05,2]
[355587002,1741332678770,-4027.07,9.868e-05,2]
[355587003,1741332678803,-2988.34,9.868e-05,2]
[355587004,1741332678831,-500.0,9.868e-05,2]
[355587005,1741332678860,-19364.2,9.868e-05,2]
[355587006,1741332678889,-500.0,9.868e-05,2]
[355587007,1741332678917,-500.0,9.868e-05,2]
[355587008,1741332678946,-605.92,9.868e-05,2]
[355587009,1741332678974,-500.0,9.868e-05,2]
[355587010,1741332679002,-500.0,9.868e-05,2]
[355587011,1741332679039,-500.0,9.868e-05,2]
[355587012,1741332679068,-2202.7,9.868e-05,2]
[355587013,1741332679097,-500.0,9.868e-05,2]
[355587014,1741332679127,-500.0,9.868e-05,2]
[355587015,1741332679156,-500.0,9.868e-05,2]
[355587016,1741332679185,-500.0,9.868e-05,2]
[355587017,1741332679214,-1539.12,9.868e-05,2]
[355587018,1741332679242,-508.69515114,9.868e-05,2]
[355587019,1741332679270,-500.0,9.868e-05,2]
[355587020,1741332679300,-500.0,9.868e-05,2]
[355587021,1741332679329,-500.0,9.868e-05,2]
[355587022,1741332679358,-2715.01,9.868e-05,2]
[355587023,1741332679386,-16423.91,9.868e-05,2]
[355587024,1741332679414,-500.0,9.868e-05,2]
[355587025,1741332679442,-861.06,9.868e-05,2]
[355587026,1741332679470,-500.0,9.868e-05,2]
[355587027,1741332679497,-500.0,9.868e-05,2]
[355587028,1741332679525,-693.42,9.868e-05,2]
[355587029,1741332679554,-505.9686089,9.868e-05,2]
[355587030,1741332679582,-1963.12,9.868e-05,2]
[355587031,1741332679610,-500.0,9.868e-05,2]
[355587032,1741332679638,-500.0,9.868e-05,2]
[355587033,1741332679666,-500.0,9.868e-05,2]
[355587034,1741332679694,-561.37,9.868e-05,2]
[355587035,1741332679724,-500.0,9.868e-05,2]
[355587036,1741332679753,-528.78511299,9.868e-05,2]
[355587037,1741332679781,-1732.15,9.868e-05,2]
[355587038,1741332679809,-521.42502759,9.868e-05,2]
[355587039,1741332679838,-500.0,9.868e-05,2]
[355587040,1741332679866,-543.82971685,9.868e-05,2]
[355587041,1741332679894,-3580.65,9.868e-05,2]
[355587042,1741332679924,-500.0,9.868e-05,2]
[355587043,1741332679954,-500.0,9.868e-05,2]
[355587044,1741332679983,-550.07,9.868e-05,2]
[355587045,1741332680012,-1076.41,9.868e-05,2]
[355587046,1741332680043,-605.34,9.868e-05,2]
[355587047,1741332680072,-500.0,9.868e-05,2]
[355587048,1741332680101,-500.0,9.868e-05,2]
[355587049,1741332680130,-185.98,9.868e-05,2]
[355587050,1741332680159,-500.0,9.868e-05,2]
[355587051,1741332680188,-500.0,9.868e-05,2]
[355587052,1741332680216,-2764.61,9.868e-05,2]
[355587053,1741332680244,-578.73,9.868e-05,2]
[355587054,1741332680272,-813.22,9.868e-05,2]
[355587055,1741332680303,-500.0,9.868e-05,2]
[355587056,1741332680331,-615.23,9.868e-05,2]
[355587057,1741332680359,-500.0,9.868e-05,2]
[355587058,1741332680388,-1238.99,9.868e-05,2]
[355587059,1741332680416,-500.0,9.87e-05,2]
[355587060,1741332680444,-258.83,9.87e-05,2]
[355587061,1741332680473,-285.18,9.87e-05,2]
[355587062,1741332680502,-500.0,9.87e-05,2]
[355587063,1741332680532,-500.0,9.87e-05,2]
[355587064,1741332680561,-500.0,9.87e-05,2]
[355587065,1741332680593,-500.0,9.87e-05,2]
[355587066,1741332680621,-500.0,9.87e-05,2]
[355587067,1741332680651,-500.0,9.87e-05,2]
[355587068,1741332680680,-500.0,9.87e-05,2]
[355587069,1741332680708,-584.12896914,9.87e-05,2]
[355587070,1741332680740,-500.0,9.87e-05,2]
[355587071,1741332680773,-500.0,9.87e-05,2]
[355587072,1741332680803,-500.0,9.87e-05,2]
[355587073,1741332680832,-371.6369068,9.87e-05,2]
[355587074,1741332680861,-500.0,9.87e-05,2]
[355587075,1741332680890,-500.0,9.87e-05,2]
[355587076,1741332680919,-500.0,9.87e-05,2]
[355587077,1741332680950,-500.0,9.87e-05,2]
[355587078,1741332680979,-500.0,9.87e-05,2]
[355587079,1741332681008,-571.27,9.87e-05,2]
[355587080,1741332681038,-500.0,9.87e-05,2]
[355587081,1741332681068,-871.05,9.87e-05,2]
[355587082,1741332681098,-500.0,9.87e-05,2]
[355587083,1741332681127,-1104.49,9.87e-05,2]
[355587084,1741332681156,-500.0,9.87e-05,2]
[355587085,1741332681186,-500.0,9.87e-05,2]
[355587086,1741332681215,-500.0,9.87e-05,2]
[355587087,1741332681244,-574.42,9.87e-05,2]
[355587088,1741332681275,-500.0,9.87e-05,2]
[355587089,1741332681304,-500.0,9.87e-05,2]
[355587090,1741332681335,-268.72125006,9.87e-05,2]
[355587091,1741332681364,-500.0,9.87e-05,2]
[355587092,1741332681393,-805.56,9.87e-05,2]
[355587093,1741332681422,-3799.25,9.9e-05,2]
[355587094,1741332681450,-150.0,9.906e-05,2]
[355587095,1741332681477,-150.0,9.906e-05,2]
[355587096,1741332681506,-150.0,9.906e-05,2]
[355587097,1741332681534,-150.0,9.906e-05,2]
[355587098,1741332681733,-150.0,9.906e-05,2]
[355587099,1741332681765,-6889.88990764,9.918e-05,2]
[355587100,1741332681796,-6889.88990764,9.925e-05,2]
[355587101,1741332681824,-319.38201485,9.945e-05,2]
[355587102,1741332681852,-1061.0,9.952e-05,2]
[355587103,1741332681883,-6889.88990764,9.957e-05,2]
[355587104,1741332681911,-999.67623745,9.97e-05,2]
[355587105,1741332681940,-1101.18435487,9.97e-05,2]
[355587106,1741332681969,-80456.0,9.973e-05,2]
[355587107,1741332681997,-848.73,9.973e-05,2]
[355587108,1741332682026,-290.0,9.98e-05,2]
[355587109,1741332682054,-15051.4087545,9.993e-05,2]
[355587110,1741332682083,-13234.9444338,9.993e-05,2]
[355587111,1741332682110,-4500.4983767,9.993e-05,2]
[355587112,1741332682138,-3799.25,9.999e-05,2]
[355587113,1741332682168,-3400.64170839,9.999e-05,2]
[355587114,1741332682197,-5355.86737638,9.999e-05,2]
[355587115,1741332682227,-1205.15026183,9.999e-05,3]
[355587116,1741332682254,-969.0,0.0001,2]
[355587117,1741332682571,-500.0,0.0001,2]
[355587118,1741332682601,-1265.43,0.0001,2]